bitfinex/quotes_BTCUSD_20240627
["timestamp","ask_amount","ask_price","bid_price","bid_amount"]
[1719500090226,0.13732527,61870.0,61869.0,1.09863303]
[1719500090426,0.112,61870.0,61869.0,1.09863303]
[1719500090631,0.012,61870.0,61869.0,1.09863303]
[1719500091054,0.012,61870.0,61869.0,1.08863303]
[1719500091403,0.012,61870.0,61869.0,1.02987053]
[1719500091851,0.026,61870.0,61869.0,1.02987053]
[1719500092255,0.026,61870.0,61869.0,1.02887053]
[1719500092256,0.014,61870.0,61869.0,1.02887053]
[1719500092457,0.06992144,61878.0,61877.0,0.08052422]
[1719500092658,0.1,61880.0,61877.0,0.08052422]
[1719500092834,0.39473898,61879.0,61877.0,0.03430334]
[1719500093032,0.39473898,61879.0,61870.0,0.4]
[1719500093033,0.1691,61878.0,61870.0,0.03430334]
[1719500093239,0.0876,61877.0,61870.0,0.03430334]
[1719500093460,0.2324,61874.0,61870.0,0.03430334]
[1719500093664,0.1,61873.0,61870.0,0.03430334]
[1719500093870,0.160825,61872.0,61870.0,0.23430334]
[1719500094064,0.1,61873.0,61870.0,0.03430334]
[1719500094065,0.12532721,61871.0,61870.0,0.03430334]
[1719500094347,0.02532721,61871.0,61869.0,0.0038943]
[1719500094549,0.12532721,61870.0,61869.0,0.0038943]
[1719500094996,0.50791621,61870.0,61869.0,0.0038943]
[1719500095216,0.12532721,61870.0,61869.0,0.0038943]
[1719500095776,0.57423121,61870.0,61859.0,0.00924]
[1719500095992,0.16087106,61865.0,61859.0,0.00924]
[1719500096183,0.02532721,61864.0,61859.0,0.00924]
[1719500096449,0.2324,61861.0,61859.0,0.20924]
[1719500096578,0.2324,61861.0,61859.0,0.00924]
[1719500097688,0.2324,61861.0,61860.0,0.2]
[1719500098289,0.1,61864.0,61861.0,0.2]
[1719500098460,0.1,61864.0,61863.0,0.28130346]
[1719500098684,0.1,61864.0,61863.0,0.29295547]
[1719500098908,0.1,61867.0,61863.0,0.28130346]
[1719500099214,0.1253431,61869.0,61866.0,0.2]
[1719500099382,0.1253431,61869.0,61863.0,0.28130346]
[1719500099815,0.1253431,61869.0,61864.0,0.2]
[1719500100347,0.1,61869.0,61865.0,0.2]
[1719500100589,0.1,61869.0,61867.0,0.2]
[1719500100817,0.1756706,61870.0,61867.0,0.2]
[1719500101812,0.014,61869.0,61867.0,0.2]
[1719500102045,0.114,61869.0,61867.0,0.201]
[1719500102913,0.16233898,61868.0,61863.0,0.01]
[1719500103118,0.2324,61865.0,61861.0,0.2]
[1719500103329,0.2324,61865.0,61863.0,0.2]
[1719500103330,0.1,61864.0,61863.0,0.2]
[1719500103532,0.1,61864.0,61863.0,0.28130346]
[1719500104106,0.1,61864.0,61863.0,0.08130346]
[1719500104527,0.1,61864.0,61859.0,0.20924]
[1719500104751,0.1,61864.0,61861.0,0.2]
[1719500105372,0.107,61864.0,61863.0,0.001]
[1719500105576,0.107,61864.0,61863.0,0.201]
[1719500105774,0.1,61864.0,61863.0,0.2]
[1719500106003,0.1,61864.0,61863.0,0.25384121]
[1719500106205,0.1,61867.0,61863.0,0.21165201]
[1719500106410,0.007,61864.0,61863.0,0.21165201]
[1719500106963,0.007,61864.0,61863.0,0.56035201]
[1719500107179,0.007,61864.0,61863.0,0.21165201]
[1719500107759,0.1,61866.0,61863.0,0.21165201]
[1719500107884,0.1,61866.0,61863.0,0.2]
[1719500108089,0.007,61864.0,61863.0,0.201]
[1719500108290,0.007,61864.0,61863.0,0.21265201]
[1719500108492,0.018,61864.0,61863.0,0.21265201]
[1719500108720,0.011,61864.0,61863.0,0.21165201]
[1719500108922,0.1,61868.0,61867.0,0.19456797]
[1719500109116,0.1,61868.0,61867.0,0.20621998]
[1719500109757,0.1,61868.0,61867.0,0.39021998]
[1719500109971,0.04704893,61870.0,61869.0,0.61621998]
[1719500110188,0.04704893,61870.0,61869.0,0.60621998]
[1719500110357,0.02460135,61872.0,61871.0,0.20621998]
[1719500112760,0.03860135,61872.0,61871.0,0.35781998]
[1719500112965,0.04960135,61872.0,61871.0,0.36881998]
[1719500113170,0.09682465,61872.0,61871.0,0.95421998]
[1719500113599,0.09682465,61872.0,61871.0,1.05777232]
[1719500114283,0.09682465,61872.0,61871.0,1.2201113]
[1719500114518,0.04960135,61872.0,61871.0,1.11655896]
[1719500115068,0.03860135,61872.0,61871.0,1.11555896]
[1719500115472,0.03960135,61872.0,61871.0,1.12255896]
[1719500115672,0.02560135,61872.0,61871.0,1.12255896]
[1719500115901,0.02460135,61872.0,61871.0,1.11555896]
[1719500116434,0.02660135,61872.0,61871.0,1.12555896]
[1719500116647,0.02560135,61872.0,61871.0,1.12255896]
[1719500116852,0.02560135,61872.0,61871.0,1.11855896]
[1719500117227,0.02560135,61872.0,61871.0,1.2385452]
[1719500117665,0.52560135,61872.0,61871.0,1.2385452]
[1719500117835,0.62560135,61872.0,61871.0,1.2385452]
[1719500119240,0.17370135,61872.0,61871.0,1.2455452]
[1719500119594,0.17470135,61872.0,61871.0,1.2455452]
[1719500120846,0.17470135,61872.0,61871.0,1.4160452]
[1719500122004,0.00084,61878.0,61876.0,0.41621998]
[1719500122234,0.00084,61878.0,61876.0,1.20337217]
[1719500123657,0.00084,61878.0,61876.0,1.20537217]
[1719500123853,0.02635773,61877.0,61876.0,1.21037217]
[1719500124452,0.02635773,61877.0,61876.0,1.12785896]
[1719500126889,0.12961675,61885.0,61884.0,0.40621998]
[1719500127089,0.12961675,61885.0,61884.0,0.76855896]
[1719500128385,0.13761675,61885.0,61884.0,0.76855896]
[1719500128550,0.13761675,61885.0,61884.0,1.10765896]
[1719500128732,0.13761675,61885.0,61884.0,1.20842486]
[1719500128993,0.23761675,61885.0,61884.0,1.20842486]
[1719500129566,0.13761675,61885.0,61884.0,1.20842486]
[1719500129967,0.13761675,61885.0,61884.0,1.09765896]
[1719500130170,0.18574874,61885.0,61884.0,0.75561998]
[1719500130470,0.18574874,61885.0,61884.0,0.60621998]
[1719500131375,0.19074874,61885.0,61884.0,0.60621998]
[1719500132077,0.19074874,61885.0,61884.0,0.70063198]
[1719500132281,0.19074874,61885.0,61884.0,0.86297096]
[1719500132514,0.06113199,61885.0,61884.0,1.05697096]
[1719500132639,0.06113199,61885.0,61884.0,1.20947096]
[1719500132843,0.06113199,61885.0,61884.0,1.19947096]
[1719500133242,0.06113199,61885.0,61884.0,1.20947096]
[1719500134796,0.08648002,61885.0,61884.0,1.20947096]
[1719500135194,0.07348002,61885.0,61884.0,1.20947096]
[1719500135406,0.07748002,61885.0,61884.0,1.20947096]
[1719500135603,0.08448002,61885.0,61884.0,1.20947096]
[1719500136006,0.07748002,61885.0,61884.0,1.20947096]
[1719500136204,0.02934803,61885.0,61884.0,1.20947096]
[1719500136773,0.03034803,61885.0,61884.0,1.21247096]
[1719500137177,0.02634803,61885.0,61884.0,1.21247096]
[1719500137595,0.02734803,61885.0,61884.0,1.22147096]
[1719500138338,0.02634803,61885.0,61884.0,1.21247096]
[1719500138549,0.02734803,61885.0,61884.0,1.22147096]
[1719500138972,0.02634803,61885.0,61884.0,1.21247096]
[1719500139383,0.02634803,61885.0,61884.0,1.20947096]
[1719500139384,0.02534803,61885.0,61884.0,1.20947096]
[1719500139556,0.02534803,61885.0,61884.0,1.21347096]
[1719500139788,0.02634803,61885.0,61884.0,1.21347096]
[1719500140165,0.02634803,61885.0,61884.0,1.38397096]
[1719500140365,0.02534803,61885.0,61884.0,1.37997096]
[1719500140576,0.02534803,61885.0,61884.0,1.39297096]
[1719500140577,0.02734803,61885.0,61884.0,1.39297096]
[1719500140927,0.02634803,61885.0,61884.0,1.38897096]
[1719500141137,0.02534803,61885.0,61884.0,1.37997096]
[1719500141340,0.02534803,61885.0,61884.0,1.57997096]
[1719500141544,0.02634803,61885.0,61884.0,1.58897096]
[1719500141973,0.00084,61896.0,61895.0,0.61621998]
[1719500142175,0.00084,61896.0,61895.0,1.36346242]
[1719500143913,0.14221133,61933.0,61895.0,1.36346242]
[1719500143914,0.329,61927.0,61926.0,0.20621998]
[1719500144133,0.329,61927.0,61926.0,0.40621998]
[1719500144134,1.05062074,61927.0,61926.0,0.40621998]
[1719500144269,0.329,61927.0,61926.0,0.40621998]
[1719500144467,0.5628,61927.0,61926.0,0.40621998]
[1719500144871,0.329,61927.0,61926.0,0.40621998]
[1719500145211,0.5628,61927.0,61926.0,0.40621998]
[1719500145420,0.5678,61927.0,61926.0,0.40721998]
[1719500145821,0.5818,61927.0,61926.0,0.40721998]
[1719500145995,0.6818,61927.0,61926.0,0.40721998]
[1719500146751,0.6818,61927.0,61926.0,0.20721998]
[1719500146871,0.6768,61927.0,61926.0,0.20621998]
[1719500147271,0.6818,61927.0,61926.0,0.20621998]
[1719500147780,0.6818,61927.0,61926.0,0.19456797]
[1719500147781,0.69313724,61927.0,61926.0,0.19456797]
[1719500147982,0.70113724,61927.0,61926.0,0.19456797]
[1719500148583,0.70113724,61927.0,61924.0,0.39456797]
[1719500148828,0.1,61926.0,61924.0,0.19456797]
[1719500149009,0.1,61926.0,61924.0,0.39456797]
[1719500149209,0.1,61926.0,61925.0,0.20621998]
[1719500149411,0.3338,61926.0,61925.0,0.19456797]
[1719500149574,0.3338,61926.0,61925.0,0.20621998]
[1719500151042,0.3378,61926.0,61925.0,0.20621998]
[1719500151241,0.3448,61926.0,61925.0,0.20621998]
[1719500151603,0.3408,61926.0,61925.0,0.20621998]
[1719500152046,0.3448,61926.0,61925.0,0.47597232]
[1719500152299,0.3378,61926.0,61925.0,0.47597232]
[1719500152506,0.3378,61926.0,61925.0,0.40621998]
[1719500152706,0.3448,61926.0,61925.0,0.40621998]
[1719500154708,0.3448,61926.0,61925.0,0.41621998]
[1719500154915,0.3448,61926.0,61925.0,0.40621998]
[1719500159162,0.4908,61926.0,61925.0,0.19456797]
[1719500159477,0.6821,61926.0,61925.0,0.19456797]
[1719500159886,0.6821,61926.0,61924.0,0.2]
[1719500160295,0.68294,61926.0,61924.0,0.2]
[1719500160496,0.68294,61926.0,61925.0,0.20621998]
[1719500161399,0.67894,61926.0,61925.0,0.19456797]
[1719500161565,0.67894,61926.0,61921.0,0.19456797]
[1719500161566,0.34164,61926.0,61921.0,0.19456797]
[1719500161762,0.34164,61926.0,61909.0,0.09130346]
[1719500161763,0.1912,61923.0,61918.0,0.01165201]
[1719500161956,0.1912,61923.0,61916.0,0.01165201]
[1719500161957,0.2338,61920.0,61916.0,0.01165201]
[1719500162162,0.2338,61917.0,61913.0,0.01165201]
[1719500162357,0.2338,61917.0,61913.0,0.2]
[1719500162358,0.1,61916.0,61913.0,0.2]
[1719500162947,0.1,61916.0,61909.0,0.09295547]
[1719500163154,0.1,61916.0,61912.0,0.01165201]
[1719500163291,0.2338,61913.0,61911.0,0.01165201]
[1719500163482,0.1,61912.0,61910.0,0.09295547]
[1719500163675,0.1,61912.0,61909.0,0.21165201]
[1719500163676,0.3366,61911.0,61909.0,0.21165201]
[1719500163934,0.3366,61911.0,61909.0,0.01165201]
[1719500164125,0.3338,61910.0,61906.0,0.01165201]
[1719500164320,0.3338,61910.0,61905.0,0.2]
[1719500164321,0.2338,61908.0,61905.0,0.2]
[1719500164496,0.2338,61908.0,61897.0,0.2]
[1719500164497,0.3366,61906.0,61897.0,0.2]
[1719500164702,0.3366,61906.0,61896.0,0.01257601]
[1719500164703,0.3366,61906.0,61899.0,0.21165201]
[1719500164939,0.2338,61900.0,61899.0,0.21165201]
[1719500165141,0.3338,61900.0,61899.0,0.21165201]
[1719500166659,0.3338,61900.0,61899.0,0.21265201]
[1719500167844,0.3398,61900.0,61899.0,0.21265201]
[1719500168047,0.04420377,61900.0,61899.0,0.18824023]
[1719500168248,0.27800377,61900.0,61899.0,0.18824023]
[1719500169021,0.28200377,61900.0,61899.0,0.18824023]
[1719500169416,0.27800377,61900.0,61897.0,0.18824023]
[1719500169629,0.27800377,61900.0,61899.0,0.18824023]
[1719500169817,0.31035013,61900.0,61899.0,0.18924023]
[1719500170359,0.29735013,61900.0,61899.0,0.18824023]
[1719500170823,0.30635013,61900.0,61899.0,0.2371946]
[1719500171047,0.30635013,61900.0,61899.0,0.18824023]
[1719500172102,0.30635013,61900.0,61896.0,0.18824023]
[1719500172313,0.30635013,61900.0,61899.0,0.18824023]
[1719500172466,0.31535013,61900.0,61899.0,0.18824023]
[1719500172876,0.30635013,61900.0,61899.0,0.18824023]
[1719500173081,0.30635013,61900.0,61896.0,0.18824023]
[1719500173285,0.31335013,61900.0,61899.0,0.18824023]
[1719500173972,0.30435013,61900.0,61899.0,0.18824023]
[1719500174537,0.31335013,61900.0,61899.0,0.18824023]
[1719500174848,0.30435013,61900.0,61899.0,0.18824023]
[1719500175021,0.29735013,61900.0,61899.0,0.18824023]
[1719500175232,0.30935013,61900.0,61899.0,0.18824023]
[1719500175434,0.30435013,61900.0,61899.0,0.18924023]
[1719500175832,0.31735013,61900.0,61899.0,0.18924023]
[1719500176036,0.31035013,61900.0,61899.0,0.18824023]
[1719500176235,0.31035013,61900.0,61898.0,0.18824023]
[1719500176457,0.08555013,61900.0,61899.0,0.18924023]
[1719500176640,0.28114636,61900.0,61899.0,0.18924023]
[1719500176936,0.38114636,61900.0,61899.0,0.18924023]
[1719500177158,0.38044636,61900.0,61899.0,0.18924023]
[1719500177707,0.38044636,61900.0,61899.0,0.18610055]
[1719500177914,0.37994636,61900.0,61899.0,0.18391414]
[1719500178115,0.37984636,61900.0,61899.0,0.18391414]
[1719500178317,0.37084636,61900.0,61899.0,0.18391414]
[1719500178712,0.37984636,61900.0,61899.0,0.18391414]
[1719500178915,0.37984636,61900.0,61889.0,0.18391414]
[1719500179119,0.37984636,61900.0,61888.0,0.2]
[1719500179120,0.2337,61890.0,61888.0,0.18391414]
[1719500179325,0.3287,61889.0,61885.0,0.17391414]
[1719500179522,0.2338,61886.0,61885.0,0.12072008]
[1719500179851,0.3338,61886.0,61885.0,0.12072008]
[1719500181013,0.3338,61886.0,61879.0,0.12072008]
[1719500181218,0.3338,61886.0,61878.0,0.12072008]
[1719500181219,0.2338,61880.0,61878.0,0.12072008]
[1719500181487,0.1,61879.0,61878.0,0.12072008]
[1719500183018,0.1,61879.0,61878.0,0.54526141]
[1719500183221,0.2338,61887.0,61883.0,0.22]
[1719500183360,0.2338,61887.0,61878.0,0.56174133]
[1719500183361,0.2338,61887.0,61886.0,0.28130346]
[1719500183571,0.2338,61887.0,61886.0,0.30130346]
[1719500183774,0.3338,61887.0,61886.0,0.30130346]
[1719500184212,0.3338,61887.0,61886.0,0.46422589]
[1719500184727,0.3438,61887.0,61886.0,0.42202354]
[1719500186227,0.3518,61887.0,61886.0,0.42302354]
[1719500188332,0.3518,61887.0,61886.0,0.91836252]
[1719500188333,0.018,61887.0,61886.0,0.91836252]
[1719500189383,0.3436,61907.0,61897.0,0.12072008]
[1719500189384,0.32768566,61907.0,61897.0,0.12072008]
[1719500189597,0.48782074,61903.0,61898.0,0.01407201]
[1719500189851,0.2338,61899.0,61898.0,0.01407201]
[1719500190169,0.3338,61899.0,61898.0,0.01407201]
[1719500190603,0.3338,61899.0,61897.0,0.12072008]
[1719500190809,0.1,61898.0,61897.0,0.12072008]
[1719500192759,0.1,61898.0,61897.0,0.14072008]
[1719500193535,0.23464,61898.0,61897.0,0.14072008]
[1719500193801,0.33464,61898.0,61897.0,0.14072008]
[1719500194181,0.33464,61898.0,61897.0,0.13172008]
[1719500194739,0.33464,61898.0,61897.0,0.17202243]
[1719500195253,0.33464,61898.0,61897.0,0.12072008]
[1719500196883,0.10084,61898.0,61897.0,0.51812008]
[1719500197301,0.00084,61898.0,61897.0,0.50812008]
[1719500197510,0.23464,61898.0,61897.0,0.12072008]
[1719500197711,0.33464,61898.0,61897.0,0.12272008]
[1719500198242,0.33464,61898.0,61897.0,0.12072008]
[1719500198441,0.33964,61898.0,61897.0,0.12072008]
[1719500198704,0.38745081,61898.0,61897.0,0.12072008]
[1719500198828,0.38245081,61898.0,61897.0,0.12072008]
[1719500199251,0.38345081,61898.0,61897.0,0.12072008]
[1719500199453,0.38045081,61898.0,61897.0,0.12072008]
[1719500201006,0.38545081,61898.0,61897.0,0.12072008]
[1719500201556,0.53465081,61898.0,61897.0,0.12072008]
[1719500201762,0.53465081,61898.0,61897.0,0.12172008]
[1719500202943,0.72815081,61898.0,61897.0,0.001]
[1719500203366,1.23117279,61898.0,61897.0,0.001]
[1719500205341,1.37358823,61898.0,61897.0,0.001]
[1719500206014,1.37258823,61898.0,61897.0,0.001]
[1719500206371,1.38058823,61898.0,61897.0,0.002]
[1719500206804,0.87554925,61898.0,61897.0,0.002]
[1719500207008,0.73313381,61898.0,61897.0,0.002]
[1719500207612,0.72995081,61898.0,61897.0,0.002]
[1719500207875,0.8725416,61898.0,61897.0,0.002]
[1719500208521,0.72995081,61898.0,61897.0,0.002]
[1719500208864,0.72995081,61898.0,61897.0,0.001]
[1719500209224,0.73595081,61898.0,61897.0,0.001]
[1719500214013,0.9889432,61898.0,61897.0,0.001]
[1719500214228,1.34404671,61898.0,61897.0,0.001]
[1719500214627,1.34404671,61898.0,61897.0,2.8e-07]
[1719500214852,1.2533933,61898.0,61897.0,2.8e-07]
[1719500215258,0.005,61887.0,61886.0,0.08130346]
[1719500215432,0.005,61887.0,61883.0,0.12072008]
[1719500215433,0.005,61886.0,61883.0,0.12072008]
[1719500215633,0.105,61886.0,61883.0,0.12072008]
[1719500215837,0.105,61886.0,61881.0,0.20202354]
[1719500216119,0.855737,61886.0,61881.0,0.08130346]
[1719500216320,1.01633504,61886.0,61881.0,0.08130346]
[1719500216521,0.855737,61886.0,61881.0,0.08130346]
[1719500216795,0.87688322,61886.0,61881.0,0.08130346]
[1719500217158,0.62203922,61886.0,61881.0,0.08130346]
[1719500217356,0.62603922,61886.0,61881.0,0.08130346]
[1719500217755,0.78664072,61886.0,61881.0,0.08130346]
[1719500218406,0.62603922,61886.0,61881.0,0.08130346]
[1719500218840,0.79264072,61886.0,61881.0,0.08130346]
[1719500219125,0.79343336,61886.0,61881.0,0.08130346]
[1719500219349,0.610893,61886.0,61881.0,0.08130346]
[1719500220732,0.610893,61886.0,61880.0,0.08130346]
[1719500220733,0.005,61882.0,61880.0,0.08130346]
[1719500220911,0.005,61882.0,61879.0,0.12072008]
[1719500220912,0.005,61880.0,61879.0,0.12072008]
[1719500221113,0.14783055,61880.0,61879.0,0.12072008]
[1719500221335,0.005,61878.0,61877.0,0.12072008]
[1719500221537,0.005,61878.0,61873.0,0.12072008]
[1719500221538,0.005,61874.0,61873.0,0.12072008]
[1719500221959,0.005,61876.0,61875.0,0.12072008]
[1719500222163,0.2388,61876.0,61875.0,0.12072008]
[1719500222520,0.3388,61876.0,61875.0,0.12072008]
[1719500222720,0.3388,61876.0,61873.0,0.12072008]
[1719500222929,0.005,61874.0,61873.0,0.12072008]
[1719500223566,0.005,61873.0,61872.0,0.12164408]
[1719500223982,0.24779787,61873.0,61872.0,0.12164408]
[1719500224745,0.24779787,61873.0,61872.0,0.000924]
[1719500225117,0.005,61868.0,61867.0,0.12072008]
[1719500226920,0.005,61862.0,61857.0,0.12072008]
[1719500227112,2.60592398,61868.0,61859.0,0.12996008]
[1719500227113,0.16233898,61867.0,61859.0,0.12996008]
[1719500227313,0.1,61866.0,61859.0,0.12996008]
[1719500227783,0.565142,61865.0,61859.0,0.12996008]
[1719500227898,0.1,61864.0,61859.0,0.12996008]
[1719500228483,0.23175,61863.0,61859.0,0.12996008]
[1719500228635,0.1,61862.0,61859.0,0.12996008]
[1719500228835,0.1,61862.0,61859.0,0.13396008]
[1719500229451,0.1,61862.0,61859.0,0.12996008]
[1719500229860,0.1,61866.0,61859.0,0.12996008]
[1719500230062,0.3593,61862.0,61859.0,0.00924]
[1719500230293,0.1,61861.0,61859.0,0.00924]
[1719500230439,1.22631398,61861.0,61859.0,0.00924]
[1719500230845,1.71964987,61860.0,61859.0,0.00924]
[1719500231063,1.88198885,61860.0,61859.0,0.00924]
[1719500231260,1.60687998,61860.0,61859.0,0.00924]
[1719500231649,1.60687998,61860.0,61846.0,0.28130346]
[1719500231863,0.2338,61854.0,61850.0,0.12072008]
[1719500232070,0.2338,61854.0,61844.0,0.12072008]
[1719500232258,0.845021,61853.0,61846.0,0.12072008]
[1719500232458,0.845021,61853.0,61843.0,0.12072008]
[1719500232459,0.2049,61852.0,61843.0,0.12072008]
[1719500232662,0.2598,61851.0,61847.0,0.12072008]
[1719500234102,0.2338,61849.0,61845.0,0.12072008]
[1719500234596,0.648105,61848.0,61845.0,0.12072008]
[1719500234930,0.648105,61848.0,61840.0,0.12072008]
[1719500235126,0.524116,61847.0,61845.0,0.12072008]
[1719500235291,0.524116,61847.0,61843.0,0.12072008]
[1719500235292,0.1,61846.0,61843.0,0.12072008]
[1719500235493,0.2338,61844.0,61839.0,0.00924]
[1719500235743,0.2338,61844.0,61834.0,0.009251]
[1719500235744,0.2338,61840.0,61829.0,1.43994064]
[1719500235951,0.2338,61834.0,61829.0,0.2]
[1719500236242,0.1,61833.0,61829.0,0.2]
[1719500236420,0.1,61833.0,61830.0,0.08130346]
[1719500236421,0.179204,61833.0,61830.0,0.08130346]
[1719500236552,0.1,61832.0,61830.0,0.08130346]
[1719500237696,0.1,61841.0,61830.0,0.08130346]
[1719500237863,0.001,61832.0,61830.0,0.09030346]
[1719500238644,0.1,61841.0,61830.0,0.09030346]
[1719500238645,0.1,61841.0,61830.0,0.08130346]
[1719500239139,0.80447,61841.0,61830.0,0.08130346]
[1719500239347,0.67997,61841.0,61830.0,0.08130346]
[1719500239933,0.37917,61840.0,61830.0,0.08130346]
[1719500240136,0.1,61839.0,61830.0,0.08130346]
[1719500240562,0.466711,61838.0,61830.0,0.08530346]
[1719500240759,0.1,61837.0,61830.0,0.08530346]
[1719500240968,0.1,61837.0,61830.0,0.08130346]
[1719500241174,0.2338,61836.0,61830.0,0.08130346]
[1719500241376,0.1,61835.0,61830.0,0.08130346]
[1719500241578,0.1,61835.0,61830.0,0.08730346]
[1719500242204,0.1,61835.0,61830.0,0.08130346]
[1719500244226,0.1,61835.0,61830.0,0.09030346]
[1719500244474,0.101,61835.0,61830.0,0.09030346]
[1719500244906,0.101,61835.0,61830.0,0.08130346]
[1719500245651,0.102,61835.0,61830.0,0.09030346]
[1719500245857,0.102,61835.0,61831.0,0.3916]
[1719500246056,0.102,61835.0,61834.0,0.3583]
[1719500246256,0.002,61835.0,61834.0,0.3583]
[1719500246456,0.002,61835.0,61833.0,0.12072008]
[1719500246682,0.2358,61835.0,61830.0,0.09030346]
[1719500246858,0.1,61834.0,61832.0,0.12072008]
[1719500247273,0.1,61834.0,61830.0,0.08744594]
[1719500247472,0.1,61834.0,61832.0,0.12072008]
[1719500247921,0.1,61834.0,61830.0,0.08744594]
[1719500248250,0.03767973,61833.0,61829.0,0.20202354]
[1719500248457,0.1,61834.0,61829.0,0.20202354]
[1719500248659,0.1,61834.0,61830.0,0.1592]
[1719500249106,0.1,61834.0,61831.0,0.203]
[1719500249545,0.1,61834.0,61833.0,0.34072008]
[1719500249800,0.1,61834.0,61833.0,0.50052008]
[1719500250024,0.04199728,61835.0,61834.0,0.14072008]
[1719500250265,0.04199728,61835.0,61834.0,0.32072008]
[1719500250536,0.1,61840.0,61835.0,0.12072008]
[1719500250735,0.1,61840.0,61839.0,0.08130346]
[1719500250904,0.1,61840.0,61839.0,0.29130346]
[1719500251475,0.0710449,61846.0,61840.0,0.2]
[1719500251675,0.1,61850.0,61840.0,0.2]
[1719500252528,0.2338,61845.0,61840.0,0.2]
[1719500252706,0.1,61844.0,61840.0,0.2]
[1719500253063,0.1,61844.0,61839.0,0.12872008]
[1719500253064,0.13338,61844.0,61839.0,0.12872008]
[1719500253195,0.2338,61840.0,61839.0,0.12872008]
[1719500253400,0.3338,61840.0,61839.0,0.12872008]
[1719500255186,0.3338,61840.0,61839.0,0.11865371]
[1719500255990,0.3338,61840.0,61839.0,0.12265371]
[1719500256337,0.3338,61840.0,61839.0,0.004]
[1719500256535,0.2035,61839.0,61831.0,0.11865371]
[1719500256736,0.2338,61832.0,61831.0,0.11865371]
[1719500256938,0.3338,61832.0,61830.0,0.0001]
[1719500257241,0.1,61831.0,61830.0,0.0001]
[1719500259513,0.101,61831.0,61830.0,0.0051]
[1719500260103,0.101,61831.0,61830.0,0.00095643]
[1719500261477,1.596834,61831.0,61830.0,0.00095643]
[1719500261679,1.3636,61831.0,61830.0,0.00095643]
[1719500262019,1.089237,61831.0,61830.0,0.00995643]
[1719500262158,0.591216,61831.0,61827.0,0.07851761]
[1719500262562,0.921162,61830.0,61827.0,0.07851761]
[1719500262819,0.713925,61830.0,61827.0,0.07851761]
[1719500263363,0.1019,61831.0,61827.0,0.07851761]
[1719500263479,0.1009,61831.0,61827.0,0.07851761]
[1719500263689,0.302808,61830.0,61827.0,0.07851761]
[1719500263895,0.1009,61831.0,61827.0,0.07851761]
[1719500264096,0.2338,61828.0,61827.0,0.07851761]
[1719500264345,0.2337,61828.0,61827.0,0.07851761]
[1719500265119,0.01,61842.0,61829.0,0.3667]
[1719500265322,0.001,61831.0,61829.0,0.3667]
[1719500265944,0.2338,61837.0,61829.0,0.3667]
[1719500266281,0.0999,61836.0,61829.0,0.3667]
[1719500266494,0.0009,61831.0,61829.0,0.3667]
[1719500266806,0.0999,61836.0,61829.0,0.3667]
[1719500267235,0.001,61831.0,61829.0,0.3667]
[1719500267804,0.0009,61831.0,61829.0,0.3667]
[1719500268003,0.0009,61831.0,61830.0,0.2]
[1719500268232,0.0009,61831.0,61830.0,0.5562]
[1719500268722,0.07245242,61840.0,61830.0,0.5562]
[1719500268927,0.07245242,61840.0,61835.0,0.08130346]
[1719500269127,0.07245242,61840.0,61830.0,0.5562]
[1719500269128,0.07245242,61840.0,61833.0,0.2]
[1719500269304,0.2338,61837.0,61830.0,0.08130346]
[1719500269503,0.2338,61831.0,61830.0,0.08130346]
[1719500269704,0.3338,61831.0,61830.0,0.08130346]
[1719500270364,0.1,61831.0,61830.0,0.64470346]
[1719500270693,0.1,61831.0,61830.0,0.72196428]
[1719500270839,0.2338,61836.0,61830.0,0.64470346]
[1719500270840,0.1,61835.0,61830.0,0.64470346]
[1719500271227,0.0999,61835.0,61830.0,0.64470346]
[1719500271425,0.001,61831.0,61830.0,0.64470346]
[1719500271944,0.0999,61835.0,61830.0,0.64470346]
[1719500272349,0.0999,61835.0,61830.0,0.64770346]
[1719500272883,0.0999,61835.0,61834.0,0.68055371]
[1719500273075,0.04257085,61840.0,61839.0,0.2]
[1719500273274,0.04257085,61840.0,61839.0,0.3567]
[1719500273778,0.1,61846.0,61839.0,0.3567]
[1719500273983,0.1,61846.0,61841.0,0.2]
[1719500274184,0.2338,61842.0,61836.0,0.11865371]
[1719500274696,0.1,61846.0,61841.0,0.2]
[1719500274960,0.30374484,61847.0,61845.0,0.1567]
[1719500275339,0.2338,61847.0,61845.0,0.1567]
[1719500275544,0.2338,61847.0,61841.0,0.3567]
[1719500275750,0.1,61846.0,61841.0,0.3567]
[1719500276730,0.2338,61842.0,61841.0,0.3567]
[1719500276976,0.2338,61842.0,61839.0,0.11865371]
[1719500276977,0.3338,61842.0,61839.0,0.12365371]
[1719500277151,0.1,61841.0,61839.0,0.12365371]
[1719500277333,0.1,61841.0,61836.0,0.003]
[1719500277531,0.2338,61837.0,61836.0,0.003]
[1719500277777,0.3338,61837.0,61836.0,0.003]
[1719500278349,0.3338,61837.0,61831.0,0.11865371]
[1719500278672,0.2338,61832.0,61830.0,0.0002]
[1719500278874,0.1,61831.0,61830.0,0.0002]
[1719500280071,0.1,61831.0,61830.0,0.11885371]
[1719500280265,0.1,61831.0,61830.0,0.0002]
[1719500281275,0.333757,61831.0,61826.0,0.009251]
[1719500281473,0.2338,61827.0,61824.0,0.12790471]
[1719500281697,0.1,61826.0,61824.0,0.009251]
[1719500282595,0.0999,61826.0,61824.0,0.009251]
[1719500283201,0.0999,61826.0,61824.0,0.012251]
[1719500284102,0.0999,61826.0,61822.0,0.11865371]
[1719500286014,0.1,61829.0,61822.0,0.11865371]
[1719500286192,0.2337,61827.0,61824.0,0.003]
[1719500286399,0.3338,61826.0,61824.0,0.003]
[1719500286598,0.3338,61826.0,61824.0,0.04422082]
[1719500286999,0.1,61826.0,61825.0,0.3548]
[1719500287227,0.1,61826.0,61825.0,0.2]
[1719500287463,0.1,61829.0,61826.0,0.2]
[1719500287658,0.0999,61829.0,61828.0,0.2]
[1719500288023,0.06907609,61831.0,61828.0,0.2]
[1719500288360,0.2338,61836.0,61828.0,0.2]